Cogmind - Beta 14 @@@ ROGUE MODE // 2025.03.25 @ 22:18:46 Player: shockman27 Result: Destroyed by G-47 Trooper with Particle Gun Performance ------------- Evolutions (2) 1000 Regions Visited (6) 1200 Robots Destroyed (98) 490 Value Destroyed (2342) 2342 Prototype IDs (26) 520 Alien Tech Used (0) 0 Bonus (576) 576 TOTAL SCORE: 6128 Bonus ------- High Alert Combat Kills 123 Follower Combat Kills 205 Aligned with FarCom 300 Friendly Fire -52 Cogmind --------- Core Integrity 0/550 Matter 300/300 Energy 100/100 System Corruption 1% Temperature Cool (9) Movement Core (700) Ox13 Location -8/Storage Parts ------- > --- POWER (1) -------- (None) > --- PROPULSION (3) --- (None) > --- UTILITY (5) ------ High-capacity Storage Unit Structural Scanner Improved Signal Interpreter > --- WEAPON (2) ------- (None) > --- INVENTORY (20) --- Light Nuclear Core Light Nuclear Core Improved Flight Unit Cesium-ion Thruster Improved VTOL Module Improved VTOL Module Cryofiber Web Improved Heat Sink Advanced Weight Redist. System Modified TNC ECM Suite Reaction Control System Improved Propulsion Shielding Light Armor Plating Hardened Light Armor Plating Insulated Plating Hacking Suite Peak State ------------ > --- POWER ------------ Light Nuclear Core > --- PROPULSION ------- Advanced Treads Advanced Treads Advanced Treads > --- UTILITY ---------- High-capacity Storage Unit Structural Scanner Improved Signal Interpreter Hardened Light Armor Plating Hacking Suite > --- WEAPON ----------- Improved Light Cannon Spear > --- INVENTORY -------- Heavy Ion Engine Light Deuterium Engine Light Nuclear Core Light Nuclear Core Improved Flight Unit Cesium-ion Thruster Improved VTOL Module Improved VTOL Module Cryofiber Web Improved Heat Sink Advanced Weight Redist. System Modified TNC ECM Suite Improved Propulsion Shielding Light Armor Plating Insulated Plating Hacking Suite EM Pulse Cannon Improved Light Cannon Missile Launcher [Rating: 34] Favorites ----------- Power Light Ion Engine Engine Light Ion Engine Power Core Light Nuclear Core Propulsion Light Treads Treads Light Treads Wheel Wheel Utility High-capacity Storage Unit Device Structural Scanner Storage High-capacity Storage Unit Processor Signal Interpreter Hackware Hacking Suite Protection Medium Armor Plating Weapon Improved Light Cannon Energy Cannon Beam Cannon Ballistic Gun Assault Rifle Ballistic Cannon Improved Light Cannon Launcher Rocket Launcher Impact Weapon Maul Slashing Weapon Katana Piercing Weapon Makeshift Spear Build | -11 -10 -10 -10 -9 -8 -8 ------- Run | Yrd Mat Min Exi Min Mat Sto Slots Evolved 4 | . . . . . 4 . Power . | . . . . . . . Propulsion 1 | . . . . . 1 . Utility 3 | . . . . . 3 . Weapon . | . . . . . . . Parts Attached 79 | 10 4 1 1 5 48 10 Power 7 | 1 . . . 1 4 1 Engine 5 | 1 . . . 1 3 . Core 2 | . . . . . 1 1 Reactor . | . . . . . . . Propulsion 16 | 4 1 . . . 11 . Treads 14 | 2 1 . . . 11 . Leg . | . . . . . . . Wheel 2 | 2 . . . . . . Hover . | . . . . . . . Flight . | . . . . . . . Utility 14 | 3 2 . 1 . 7 1 Device 4 | 2 . . . . 2 . Storage 3 | 1 1 . 1 . . . Processor 2 | . 1 . . . 1 . Hackware 1 | . . . . . 1 . Protection 4 | . . . . . 3 1 Artifact . | . . . . . . . Weapon 42 | 2 1 1 . 4 26 8 Energy Gun . | . . . . . . . Energy Cannon 7 | . 1 . . 2 4 . Ballistic Gun 3 | 2 . . . . 1 . Ballistic Cannon 14 | . . . . . 11 3 Launcher 6 | . . 1 . 1 2 2 Special Weapon . | . . . . . . . Impact Weapon 1 | . . . . . . 1 Slashing Weapon 3 | . . . . 1 . 2 Piercing Weapon 8 | . . . . . 8 . Special Melee Weapon . | . . . . . . . Unidentified Prototypes 2 | . . . . . 2 . Parts Lost 12 | . . . . . 2 10 Power 2 | . . . . . . 2 Propulsion 4 | . . . . . 1 3 Utility 3 | . . . . . 1 2 Weapon 3 | . . . . . . 3 Highest Loss Streak 4 | . . . . . 1 4 To Critical Strikes . | . . . . . . . Average Slot Usage (%) 98 | . 99 100 100 100 98 90 Engine 11 | . 14 14 14 14 8 8 Treads 26 | . 27 28 28 28 26 20 Device 6 | . 11 . . . 8 9 Storage 11 | . 14 14 14 14 9 9 Processor 9 | . 2 14 14 14 9 9 Hackware 4 | . . . . . 8 8 Protection 4 | . . . . . 8 8 Energy Cannon 7 | . 12 14 14 15 1 . Ballistic Gun 3 | . 15 5 . . . . Ballistic Cannon 5 | . . . . . 12 8 Launcher 2 | . . 8 14 1 . 1 Slashing Weapon 1 | . . . . 10 . 1 Piercing Weapon 1 | . . . . . 3 . Peak Build Rating 34 | 9 9 10 11 14 34 34 Average Rating 18 | 7 8 9 10 13 27 30 On Entrance 12 | . 8 9 10 11 14 34 Naked Turns . | . . . . . . . Heaviest Build 66 | 13 29 30 50 52 65 66 Greatest Support 66 | 40 40 40 40 40 66 66 Greatest Overweight (x) 21 | . 1 . 1 1 1 21 Average Overweight (x) . | . . . . 1 . . Largest Inventory Capacity 20 | 8 15 15 20 20 20 20 Average Capacity 17 | 7 13 15 15 20 20 20 Most Carried 20 | 8 15 15 15 18 20 20 Average Carried 16 | 6 12 14 15 16 19 19 Final Capacity 20 | 8 15 15 20 20 20 20 Final Carried 20 | 8 14 15 15 18 20 17 Class Distribution -------------------- 85% | Mutant 14% | Scavenger-Mutant Dominant Class ---------------- Mutant | -10/Materials Mutant | -10/Mines Mutant | -10/Exiles Mutant | -9/Mines Mutant | -8/Materials Mutant | -8/Storage Resources | -11 -10 -10 -10 -9 -8 -8 ----------- Run | Yrd Mat Min Exi Min Mat Sto Matter Collected 2342 | 354 126 64 . 93 1020 685 Remotely . | . . . . . . . Salvage Created 3275 | 131 551 27 . 172 1334 1060 Parts 179 | 8 31 5 . 7 72 56 Haulers Intercepted 10 | . 2 . . . 4 4 Recyclers Shooed 2 | 1 . . . . 1 . Parts Field Recycled . | . . . . . . . Retrieved Matter . | . . . . . . . Parts Self-Destructed . | . . . . . . . Prevented . | . . . . . . . Kills | -11 -10 -10 -10 -9 -8 -8 ------- Run | Yrd Mat Min Exi Min Mat Sto Combat Hostiles Destroyed 58 | . 6 3 . 6 24 19 Melee 6 | . . . . 2 1 3 Guns 2 | . 2 . . . . . Cannons 36 | . 4 . . 4 20 8 AOE 12 | . . 3 . . 3 6 Classes Destroyed 12 | 2 5 1 . 2 2 . Worker 7 | . 1 1 . . 1 4 Builder 5 | . . . . 2 1 2 Tunneler 5 | 3 . . . 1 1 . Hauler 10 | . 2 . . . 4 4 Recycler 10 | 1 1 . . . 4 4 Operator 2 | . 1 . . . 1 . Watcher 7 | . 3 . . . 3 1 Swarmer 13 | . . 3 . . 6 4 Grunt 23 | . 6 . . . 9 8 Sentry 14 | . . . . . 8 6 Hunter 2 | . . . . . 1 1 Assembled 6 | . . . . 6 . . Best Kill Streak 7 | 1 3 4 . 2 6 7 Combat Bots Only 4 | . 2 3 . 2 3 4 Max Kills in Single Turn 4 | 1 2 3 . 1 3 4 Gunslinging . | . . . . . . . Exploded 4 | . . 2 . . 3 4 Melee 1 | . . . . 1 1 1 Uniques/NPCs Destroyed . | . . . . . . . Combat | -11 -10 -10 -10 -9 -8 -8 -------- Run | Yrd Mat Min Exi Min Mat Sto Hostile Shots Fired 294 | . 24 3 . 11 87 169 Missed 75 | . 10 1 . 1 27 36 Damage Taken 3269 | . 215 28 . 167 854 2005 Core 678 | . 86 10 . 31 120 431 Absorbed by Shields . | . . . . . . . Regen/Repaired (Parts) 476 | . 109 . . . 367 . Core Remaining (%) 74 | 100 . . . 49 . . Volleys Fired 227 | 9 32 4 . 9 101 72 Largest 2 | 2 2 1 . 2 2 2 Hottest 123 | 40 80 33 . 123 102 88 Shots Fired 356 | 18 64 4 . 11 167 92 Gun 50 | 18 32 . . . . . Cannon 291 | . 32 . . 8 163 88 Launcher 15 | . . 4 . 3 4 4 Special . | . . . . . . . Kinetic 286 | 18 32 . . . 148 88 Thermal 35 | . 32 . . 3 . . Explosive 15 | . . 4 . 3 4 4 Electromagnetic 20 | . . . . 5 15 . Robot Hit Streak 14 | 11 10 1 . 9 14 6 Robot Miss Streak 6 | 1 3 1 . . 6 3 Penetration Max . | . . . . . . . Secondary Targets . | . . . . . . . Shots Hit Robots 254 | 14 40 1 . 15 105 79 Core Hits 125 | 5 18 7 . 8 51 36 Critical Kills 2 | . 1 . . . . 1 Critical Parts Destroyed 4 | 1 . . . . . 3 Critical Strikes 12 | 1 1 . . 1 2 7 Meltdown 1 | . 1 . . . . . Destroy 1 | 1 . . . . . . Blast 4 | . . . . . 2 2 Corrupt 1 | . . . . 1 . . Smash 4 | . . . . . . 4 Sever 1 | . . . . . . 1 Melee Attacks 70 | . . . . 9 26 35 Impact 23 | . . . . . . 23 Slashing 21 | . . . . 9 . 12 Piercing 26 | . . . . . 26 . Sneak Attacks 22 | . . . . 3 7 12 Combat Hostiles . | . . . . . . . Follow-up Attacks . | . . . . . . . Damage Inflicted 7412 | 172 650 268 . 559 2733 3030 Guns 424 | 172 252 . . . . . Cannons 4014 | . 394 . . 162 2089 1369 Explosions 998 | . . 255 . 52 180 511 Melee 1954 | . . . . 345 464 1145 Ramming 22 | . 4 13 . . . 5 Kinetic 3648 | 172 252 . . . 1855 1369 Thermal 446 | . 394 . . 52 . . Explosive 998 | . . 255 . 52 180 511 Electromagnetic 344 | . . . . 110 234 . Impact 677 | . . . . . . 677 Slashing 813 | . . . . 345 . 468 Piercing 464 | . . . . . 464 . Highest Corruption 1 | . . . . . . 1 Average Corruption 1 | . . . . . . 1 Corruption Purged . | . . . . . . . Corruption Blocked . | . . . . . . . Effects 4 | . . . . . . 4 Heat Flow Errors 1 | . . . . . . 1 Energy Discharges 1 | . . . . . . 1 Parts Rejected 1 | . . . . . . 1 Data Loss (minor) 1 | . . . . . . 1 Overload Shots . | . . . . . . . Overflow Damage 505 | . 7 . . 69 28 401 Projectiles 58 | . 7 . . . 28 23 Explosions 8 | . . . . . . 8 Melee 439 | . . . . 69 . 370 Knockbacks 34 | . . . . . 10 24 Impact 1 | . . . . . . 1 Kinetic 31 | . . . . . 10 21 Secondary 2 | . . . . . . 2 Self-Inflicted Damage 29 | . . . . 28 . 1 Shots 1 | . . . . 1 . . Rammed 7 | . 2 2 . . . 3 Targets Rammed 7 | . 2 2 . . . 3 Kicked . | . . . . . . . Crushed . | . . . . . . . Highest Temperature 313 | . 225 . . 126 171 313 Average Temperature 68 | . 71 . . 37 39 105 Received Heat Transfer 1576 | . 150 9 . 40 324 1053 Effects 2 | . . . . . . 2 Interference 2 | . . . . . . 2 Siege Activations . | . . . . . . . Robots Corrupted 3 | . . . . . . 3 Combat Hostiles 1 | . . . . . . 1 Parts Fried 6 | . . . . . 1 5 Impact Corruptions 9 | . . . . . . 9 Robots Melted 1 | . 1 . . . . . Combat Hostiles . | . . . . . . . Parts Melted 2 | . 2 . . . . . Heat Transferred 925 | . 814 . . 111 . . Parts Sabotaged . | . . . . . . . Parts Stolen . | . . . . . . . Parts Stripped . | . . . . . . . Power Chain Reactions . | . . . . . . . Alert | -11 -10 -10 -10 -9 -8 -8 ------- Run | Yrd Mat Min Exi Min Mat Sto Peak Influence 528 | 20 122 236 . 83 469 528 Initial 163 | . 13 . . . 1 163 Average 124 | 9 29 60 . 14 154 376 Maximum Alert Level 2 | . . 1 . . 2 2 Low Security (%) 73 | 100 100 89 . 100 66 5 Level 1 19 | . . 10 . . 28 55 Level 2 7 | . . . . . 5 39 Level 3 . | . . . . . . . Level 4 . | . . . . . . . Level 5 . | . . . . . . . High Security . | . . . . . . . Max Security . | . . . . . . . Squads Dispatched 7 | . . . . 1 3 3 Investigation 3 | . . . . 1 1 1 Extermination . | . . . . . . . Reinforcement 2 | . . . . . 2 . Assault . | . . . . . . . Garrison 2 | . . . . . . 2 Intercept . | . . . . . . . Searches Triggered . | . . . . . . . Construction Impeded . | . . . . . . . Haulers Reinforced . | . . . . . . . Active Scanning Responses . | . . . . . . . Cargo Convoy Interrupts . | . . . . . . . Stealth | -11 -10 -10 -10 -9 -8 -8 --------- Run | Yrd Mat Min Exi Min Mat Sto Distress Signals 6 | . . . . 1 3 2 Communications Jammed . | . . . . . . . Distress Signals . | . . . . . . . Times Spotted 94 | . 11 6 . 11 38 28 Peak Tracking Total 5 | . 2 3 . 3 4 5 Tactical Retreats 5 | . 1 . . 2 1 1 Traps | -11 -10 -10 -10 -9 -8 -8 ------- Run | Yrd Mat Min Exi Min Mat Sto Traps Triggered 3 | . 1 . . . . 2 Indirectly . | . . . . . . . Trap Hack Attempts . | . . . . . . . Triggered . | . . . . . . . Disarmed . | . . . . . . . Reprogrammed . | . . . . . . . Reused . | . . . . . . . Traps Extracted . | . . . . . . . Installed . | . . . . . . . Triggered . | . . . . . . . Machines | -11 -10 -10 -10 -9 -8 -8 ---------- Run | Yrd Mat Min Exi Min Mat Sto Machines Disabled 10 | . 1 1 . . 5 3 Max in Single Turn 2 | . 1 1 . . 1 2 Garrison Access 1 | . . . . . 1 . Machines Repaired . | . . . . . . . Machines Dismantled . | . . . . . . . Machines Sabotaged . | . . . . . . . Overloaded Fab Kills . | . . . . . . . Hacking | -11 -10 -10 -10 -9 -8 -8 --------- Run | Yrd Mat Min Exi Min Mat Sto Machines Accessed 28 | . 8 1 3 1 10 5 Terminals 17 | . 7 . . 1 5 4 Fabricators . | . . . . . . . Repair Stations 3 | . 1 . . . 2 . Recycling Units 2 | . . . . . 1 1 Scanalyzers 1 | . . . . . 1 . Garrison Access 1 | . . . . . 1 . Total Hacks 92 | . 27 1 4 3 41 16 Successful 54 | . 15 1 4 2 26 6 Failed 36 | . 11 . . 1 14 10 Catastrophic 4 | . 1 . . . 1 2 Database Lockouts 2 | . 1 . . . 1 . Manual 40 | . 17 . 1 1 12 9 Terminals 54 | . 22 . . 3 16 13 Fabricators . | . . . . . . . Repair Stations 22 | . 5 . . . 17 . Recycling Units 4 | . . . . . 1 3 Scanalyzers 5 | . . . . . 5 . Garrison Access 2 | . . . . . 2 . Terminal Hacks 27 | . 11 1 4 2 4 5 Record 3 | . . . 3 . . . Robot Analysis 4 | . 3 . . . 1 . Open Door 2 | . . 1 . . . 1 Branch Access Points 1 | . . . . . . 1 Emergency Access Points 1 | . 1 . . . . . Unreport Threat 1 | . . . . . 1 . Locate Traps 5 | . 5 . . . . . Surveillance Status 1 | . . . . . . 1 Transport Status 1 | . . . . . 1 . Assault Status 1 | . . . . 1 . . Garrison Status 1 | . . . . . . 1 Hauler Manifests 1 | . . . . . 1 . Zone Layout 4 | . 2 . . 1 . 1 Derelict Proto ID Bank 1 | . . . 1 . . . Fabricator Hacks . | . . . . . . . Repair Station Hacks 19 | . 4 . . . 15 . Scan Component 10 | . 2 . . . 8 . Repair 9 | . 2 . . . 7 . Recycling Unit Hacks 2 | . . . . . 1 1 Report Inventory 2 | . . . . . 1 1 Scanalyzer 5 | . . . . . 5 . Insert Component 2 | . . . . . 2 . Analyze 3 | . . . . . 3 . Garrison Access Hacks 1 | . . . . . 1 . Seal Access 1 | . . . . . 1 . Unauthorized Hacks . | . . . . . . . Terminals . | . . . . . . . Fabricators . | . . . . . . . Repair Stations . | . . . . . . . Recycling Units . | . . . . . . . Scanalyzers . | . . . . . . . Garrison Access . | . . . . . . . Data Cores Recovered 1 | . 1 . . . . . Used . | . . . . . . . Hacking Detections 18 | . 6 . . 1 6 5 Full Trace Events 9 | . 4 . . 1 2 2 Feedback Events . | . . . . . . . Feedback Blocked . | . . . . . . . Robot Schematics Acquired . | . . . . . . . Robots Built . | . . . . . . . Authchips . | . . . . . . . Time . | . . . . . . . Total Robot Build Rating . | . . . . . . . Part Schematics Acquired 2 | . . . . . 2 . Parts Built . | . . . . . . . Authchips . | . . . . . . . Time . | . . . . . . . Total Part Build Rating . | . . . . . . . Parts Repaired 9 | . 2 . . . 7 . Time 347 | . 64 . . . 283 . Parts Recycled . | . . . . . . . Recycled Matter . | . . . . . . . Retrieved Matter . | . . . . . . . Retrieved Components . | . . . . . . . Parts Scanalyzed 2 | . . . . . 2 . Part Schematics Acquired 2 | . . . . . 2 . Parts Damaged 1 | . . . . . 1 . Bothacking | -11 -10 -10 -10 -9 -8 -8 ------------ Run | Yrd Mat Min Exi Min Mat Sto Used RIF Installer . | . . . . . . . Robots Hacked . | . . . . . . . Non-combat . | . . . . . . . Combat . | . . . . . . . Robot Hacks Applied . | . . . . . . . Relay Couplers Released . | . . . . . . . Fabnet Peak Effective % . | . . . . . . . Robots Rewired . | . . . . . . . Allies Hacked . | . . . . . . . Hacks Repelled . | . . . . . . . Allies | -11 -10 -10 -10 -9 -8 -8 -------- Run | Yrd Mat Min Exi Min Mat Sto Total Allies 4 | . . 3 . 1 . . Largest Group 3 | . . 3 2 2 1 . Highest-Rated Group 44 | . . 40 32 44 13 . Highest-Rated Ally 31 | . . 16 16 31 13 . Total Orders . | . . . . . . . Ally Attacks 41 | . . 16 . 25 . . Total Damage 392 | . . 168 . 224 . . Kills 9 | . . 4 . 5 . . Allies Corrupted . | . . . . . . . Allies Melted . | . . . . . . . Intel | -11 -10 -10 -10 -9 -8 -8 ------- Run | Yrd Mat Min Exi Min Mat Sto Robot Analysis Total 4 | . 3 . . . 1 . Derelict Logs Recovered 6 | . . 3 . 3 . . Drone Launches . | . . . . . . . Drone Recoveries . | . . . . . . . Exploration | -11 -10 -10 -10 -9 -8 -8 ------------- Run | Yrd Mat Min Exi Min Mat Sto Turns Passed 12601 | 245 2252 1459 685 1946 4335 1679 Spaces Moved 6285 | 145 1251 885 403 780 2105 716 Core 11 | 2 . . . . . 9 Treads 6220 | 89 1251 885 403 780 2105 707 Legs . | . . . . . . . Wheels 54 | 54 . . . . . . Hover . | . . . . . . . Flight . | . . . . . . . Fastest Speed 50 | 50 160 160 160 240 145 145 Average Speed 170 | 132 160 160 169 240 150 189 Slowest Speed 1100 | 160 240 160 240 240 232 1100 Overloaded Moves . | . . . . . . . Propulsion Burnouts . | . . . . . . . Robots Hopped . | . . . . . . . Cave-ins Triggered . | . . . . . . . Exploration Rate (%) 73 | 8 98 98 63 96 89 62 Regions Visited 6 Branch Regions 4 Pre-discovered Areas 2 | . . 2 . . . . Known Exits Taken 5 | . 1 1 1 1 1 . Unknown Exits Taken 1 | 1 . . . . . . Scrap Searched 3 | . . 1 . 2 . . Spaces Dug 26 | . . . . . 20 6 Terrain Destroyed 170 | . . 29 . 23 54 64 Melee 17 | . . . . . 11 6 Projectile 17 | . . . . . 4 13 AOE 136 | . . 29 . 23 39 45 Terrain Rammed . | . . . . . . . Walls Destroyed . | . . . . . . . Machines Disabled . | . . . . . . . Actions | -11 -10 -10 -10 -9 -8 -8 --------- Run | Yrd Mat Min Exi Min Mat Sto Total 7706 | 176 1442 924 406 828 3063 867 Wait 931 | 4 121 26 . 22 728 30 Move 6279 | 144 1250 884 402 779 2104 716 Hop . | . . . . . . . Pick Up 63 | 9 20 4 1 3 26 . Fast Attach 16 | 6 . . . . 9 1 Attach 11 | 1 1 . . . 6 3 Detach . | . . . . . . . Swap 53 | 3 3 1 1 5 34 6 Drop 49 | . 13 3 2 1 29 1 Fire 227 | 9 32 4 . 9 101 72 Melee 70 | . . . . 9 26 35 Ram 3 | . . . . . . 3 Kick . | . . . . . . . Crush 4 | . 2 2 . . . . Escape Stasis . | . . . . . . . Rewire . | . . . . . . . Trap . | . . . . . . . Miscellaneous . | . . . . . . . Route ------- -11/Scrapyard -10/Materials (discovered 5 exits: *Mat x3 / *Min / *Sub) -10/Mines (discovered 3 exits: *Mat x2 / *Exi) -10/Exiles (discovered 2 exits: *Min x2) -9/Mines (discovered 2 exits: *Mat x2) -8/Materials (discovered 4 exits: *Fac x2 / *Sto x2) -8/Storage (discovered 2 exits: *Fac / Rec) History --------- Turn | Location | Event 37 | -11/Scrapyard | Discovered new exit (range 16) 246 | -11/Scrapyard | Entered Materials 310 | -10/Materials | Build established: Mutant 936 | -10/Materials | Discovered new exit (range 16) 1236 | -10/Materials | Central database locked down 1282 | -10/Materials | Discovered new exit (range 3) 1639 | -10/Materials | Discovered new exit (range 12) 2041 | -10/Materials | Discovered new exit (range 8) 2059 | -10/Materials | Identified exit to Subcaves 2116 | -10/Materials | Identified exit to Materials 2348 | -10/Materials | Discovered new exit (range 12) 2442 | -10/Materials | Repaired Lgt. Nuclear Core 2470 | -10/Materials | Repaired Lgt. Treads 2491 | -10/Materials | Identified exit to Mines 2498 | -10/Materials | Entered Mines 2505 | -10/Mines | Received a Rocket Launcher from a helpful Derelict 2527 | -10/Mines | Deemed a non-threat by the Exiles lab entrance 2528 | -10/Mines | Discovered new exit (range 5) 2608 | -10/Mines | Met a Derelict who couldn't figure out how to use a Trap Extractor 2675 | -10/Mines | Learned location of 1 exit from Materials 2802 | -10/Mines | Assisted by bots powering up and referring to "LRC-V3" 2903 | -10/Mines | Learned Materials trap positions 2933 | -10/Mines | Discovered exit to Materials (range 8) 3588 | -10/Mines | Learned location of Storage (-8) 3727 | -10/Mines | Discovered exit to Materials (range 4) 3954 | -10/Mines | Identified exit to Exiles 3957 | -10/Mines | Entered Exiles 3957 | -10/Exiles | Accompanied by 2 allies 4013 | -10/Exiles | Discovered new exit (range 15) 4044 | -10/Exiles | Identified exit to Mines 4090 | -10/Exiles | Met 8R-AWN 4127 | -10/Exiles | Met EX-HEX 4197 | -10/Exiles | Met EX-BIN 4236 | -10/Exiles | Aligned with FarCom system 4237 | -10/Exiles | Given EX-Vault access code 4317 | -10/Exiles | Opened EX-Vault 4329 | -10/Exiles | Found Modified TNC 4384 | -10/Exiles | Exiles lab attacked by MAIN.C 4606 | -10/Exiles | Discovered exit to Mines (range 10) 4642 | -10/Exiles | Left Exiles lab with Modified TNC 4642 | -10/Exiles | Entered Mines 4642 | -9/Mines | Accompanied by 2 allies 4643 | -9/Mines | Assembled infested the area 5109 | -9/Mines | Core integrity fell below 50% 5233 | -9/Mines | Learned Materials stockpile data 5458 | -9/Mines | Identified exit to Materials 5465 | -9/Mines | A weapon hastily lodged in a ceiling crevice suddenly fell to the ground 5766 | -9/Mines | Received a Mining Laser from a helpful Derelict 6588 | -9/Mines | Entered Materials 6588 | -8/Materials | Accompanied by 1 ally 6588 | -8/Materials | Evolved 4 slots: Propulsion x1, Utility x3 6589 | -8/Materials | Identified exit to Factory 6590 | -8/Materials | Loaded intel: 14 trap records 6883 | -8/Materials | Build established: Scavenger-Mutant 8025 | -8/Materials | Repaired Broken Imp. Flight Unit 8771 | -8/Materials | Build established: Mutant 9736 | -8/Materials | Discovered new exit (range 5) 9746 | -8/Materials | Identified exit to Storage 10017 | -8/Materials | Repaired Structural Scanner 10106 | -8/Materials | Repaired Imp. Light Cannon 10214 | -8/Materials | Discovered exit to Storage (range 10) 10267 | -8/Materials | Central database locked down 10546 | -8/Materials | Discovered exit to Factory (range 15) 10769 | -8/Materials | Repaired Adv. Treads 10811 | -8/Materials | Repaired Adv. Treads 10847 | -8/Materials | Repaired Hrd. Light Armor Plating 10903 | -8/Materials | Repaired Broken Adv. Treads 10923 | -8/Materials | Entered Storage 10929 | -8/Storage | Identified exit to Recycling 11048 | -8/Storage | Garrison activated, responded to threat 11188 | -8/Storage | Garrison activated, responded to threat 12428 | -8/Storage | Discovered exit to Factory (range 16) 12486 | -8/Storage | Core integrity fell below 50% 12521 | -8/Storage | Lost 4 parts (1p2n1w) 12587 | -8/Storage | Core integrity fell below 20% 12602 | -8/Storage | Destroyed by G-47 Trooper with Particle Gun Last Messages --------------- 12574_ Recycling unit begins recycling process. 12575_ R-06 Scavenger collects Corrupted Wheel. 12576_ R-06 Scavenger inserts Lgt. Ion Engine into recycling unit. 12579_ R-06 Scavenger inserts Lgt. Treads into recycling unit. 12579_ R-06 Scavenger collects Wheel. 12580_ Recycling unit begins recycling process. 12581_ Recycling unit begins matter transfer process. 12581_ System corrupted: Maul rejected. 12582_ R-06 Scavenger inserts Heat Sink into recycling unit. 12582_ R-06 Scavenger collects Maul. 12584_ Lgt. Nuclear Core destroyed. 12587_ Slammed into G-47 Trooper. 12588_ Hacking Suite destroyed. 12591_ K-01 Serf collects debris. 12594_ Slammed into G-47 Trooper. 12594_ Destabilizing: System interference. 12594_ Structural Scanner temporarily disabled. 12594_ Imp. Signal Interpreter temporarily disabled. 12598_ K-01 Serf collects debris. 12601_ Slammed into G-47 Trooper. Map ----- +----------------------------------------------------+ | ??????????????????????## ##?## # ! ?## / | | ??????????????????????## ##?## # !?## # | | ??????????????????????## ##?## # =! ## # | | ??????????????????????## ######### [ ## # | | ??????????????????????## #############+##+###### | | ??????????????????????## ### ## | | ????????????????????#### ### ## | | ????????????????????#### ### ## | | ????????????????????##"" ######## ### ## % | | ????????????????????##T ######## ### ##+##+ | | ????????????????????#### ######## % ^^ | | ????????????????????#### ########+## ^^ | | ??????????????????????## # # ^ | | ?????????????????????### # ??""" + ^ | | ??????????????????###### # """"!" #########+### | | ?????????????????? ##### u# "!""!" ####### | | ?????????????????? + % + "="" " ##??????????? | | ?????????????????? ##### %# "!"" " ##??????????? | | ?????????????????? ##### # " ##??????????? | | ??????????????????????## # ##??????????? | | ??????????????????????## r############??????????? | | ?????????????????????### ############??????????? | | ???????????????????##### ""##???????????????#### | | ???????#### ##### Y"##???????????????#### | | ???????########+##### # g ""##???????????????## | | ??????? @ ###??????#####????## " | | ??????? < %%########??#####????## " | | ??????? %k ######??##]###???## " | | ???????????#+######### # ##??## ###???## " | | ??????????? # # ! ###### T####### | | ???????????????? # # ######+#########+ | | ???????????????? # # ; | | ???????????????? # """"" # ! # ########+ | | ???????????????? # """"" #* | # ##### | | ???????????????? # """"" # ! + ##?## " | | ???????????????? # ################?## " | | ????????????????????? ################?## " | | ?????????????????????##### ##???????????????## | | ?????????????????????########???????????????###### | | | | | | | | | | | | | | | | | | | | | | | +----------------------------------------------------+ Best States ------------- Heat Dissipation 31 Energy Generation 14 Energy Capacity 280 Matter Stores 300 Matter Capacity 300 Sight Range 16 Terrain Scan Range 16 Terrain Scan Density 10 Armor Coverage 225 Evasion (%) 42 Recoil Reduction 3 Offensive Hacking 10 Item Schematics ----------------- Imp. Flight Unit | -8/Materials | Scanalyzed Cesium-ion Thruster | -8/Materials | Scanalyzed Robot Schematics ------------------ None Fabricated ------------ Nothing Alien Tech Used ----------------- None Achievements -------------- Armchair Analyst Part-time Excavator Challenges ------------ None Game ------ Seed CooledConcussiveRouter Manual? 0 Play Time 01:58:53 Cumulative 29.6 hours Start 2025.03.24 @ 08:21:30 End 2025.03.25 @ 22:18:46 Sessions 2 Manual Loads 0 Difficulty Rogue Special Mode None Game No. 18 Rogue 14 Adventurer 4 Explorer 0 Win Type - Total 0 Types 0/0/0/0/0/0/0/0/0 Lore% 10 Gallery% 19 Achievement% 19 Wizard Run 0 Options --------- Layout 0 ASCII 0 Keyboard 1 Movement Vi Keybinds 0 Fullscreen 1 Font 24/Crisp Map View 76x50 Zoom Use 0% Tactical HUD 1 Map Filters NONE Filters NONE Steam 1 RUN: ffa36474-65d7-4023-a810-940b07143f05